fUST/lending_fUST_20250301
["ID","MTS","AMOUNT","RATE_DAILY","PERIOD"]
[354926699,1740826234691,-643.74,0.00032876,2]
[354926700,1740826234701,-1577.88,0.00032876,2]
[354926701,1740826234710,-500.0,0.00032876,2]
[354926702,1740826234719,-500.0,0.00032876,2]
[354926703,1740826234728,-500.0,0.00032876,2]
[354926704,1740826234739,-500.0,0.00032876,2]
[354926705,1740826234748,-500.0,0.00032876,2]
[354926706,1740826234758,-500.0,0.00032876,2]
[354926707,1740826234767,-527.92,0.00032876,2]
[354926708,1740826234777,-500.0,0.00032876,2]
[354926709,1740826234787,-164.554197,0.00032876,7]
[354926710,1740826234796,-500.0,0.00032876,2]
[354926711,1740826234804,-500.0,0.00032876,2]
[354926712,1740826234814,-500.0,0.00032876,2]
[354926713,1740826234823,-500.0,0.00032876,2]
[354926714,1740826234832,-500.0,0.00032876,2]
[354926715,1740826234841,-164.554197,0.00032876,7]
[354926716,1740826234851,-500.0,0.00032876,2]
[354926717,1740826234860,-151.0,0.00032876,7]
[354926718,1740826234869,-151.0,0.00032876,7]
[354926719,1740826234878,-151.0,0.00032876,7]
[354926720,1740826234887,-1496.72,0.00032876,2]
[354926721,1740826234897,-512.00114862,0.00032876,2]
[354926722,1740826234906,-179.818928,0.00032876,7]
[354926723,1740826234915,-179.818928,0.00032876,7]
[354926724,1740826234924,-79.81176865,0.00032876,2]
[354926725,1740826235223,-420.18823135,0.00032876,2]
[354926726,1740826235232,-179.818928,0.00032876,7]
[354926727,1740826235242,-179.818928,0.00032876,7]
[354926728,1740826235251,-500.0,0.00032876,2]
[354926729,1740826235266,-345.94771661,0.00032876,2]
[354926730,1740826235275,-622.98621605,0.00032876,2]
[354926731,1740826235284,-963.25,0.00032876,2]
[354926732,1740826235294,-500.0,0.00032876,2]
[354926733,1740826235303,-500.0,0.00032876,2]
[354926734,1740826235312,-500.0,0.00032876,2]
[354926735,1740826235322,-500.0,0.00032876,2]
[354926736,1740826235332,-500.0,0.00032876,2]
[354926737,1740826235341,-362.89129365,0.00032876,2]
[354926738,1740826235351,-507.08,0.00032876,2]
[354926739,1740826235361,-500.0,0.00032876,2]
[354926740,1740826235370,-522.96,0.00032876,2]
[354926741,1740826235380,-500.0,0.00032876,2]
[354926742,1740826235390,-500.0,0.00032876,2]
[354926743,1740826235400,-500.0,0.00032876,2]
[354926744,1740826235411,-280.683372,0.00032876,7]
[354926745,1740826235420,-280.683372,0.00032876,7]
[354926746,1740826235429,-500.0,0.00032876,2]
[354926747,1740826235438,-500.0,0.00032876,2]
[354926748,1740826235447,-280.683372,0.00032876,7]
[354926749,1740826235456,-280.683372,0.00032876,7]
[354926750,1740826235465,-666.09,0.00032876,2]
[354926751,1740826235474,-500.0,0.00032876,2]
[354926752,1740826235483,-511.78070132,0.00032876,2]
[354926753,1740826235493,-500.0,0.00032876,2]
[354926754,1740826235503,-947.72,0.00032876,2]
[354926755,1740826235512,-500.0,0.00032876,2]
[354926756,1740826235521,-151.0,0.00032876,7]
[354926757,1740826235530,-151.0,0.00032876,7]
[354926758,1740826235540,-564.01,0.00032876,2]
[354926759,1740826235550,-500.0,0.00032876,2]
[354926760,1740826235559,-500.0,0.00032876,2]
[354926761,1740826235568,-500.0,0.00032876,2]
[354926762,1740826235578,-519.5913245,0.00032876,2]
[354926763,1740826235587,-500.0,0.00032876,2]
[354926764,1740826235596,-1030.89,0.00032876,2]
[354926765,1740826235606,-500.0,0.00032876,2]
[354926766,1740826235615,-500.0,0.00032876,2]
[354926767,1740826235625,-500.0,0.00032876,2]
[354926768,1740826235635,-772.28,0.00032876,2]
[354926769,1740826235644,-525.62,0.00032876,2]
[354926770,1740826235655,-612.75,0.00032876,2]
[354926771,1740826235667,-500.0,0.00032876,2]
[354926772,1740826235677,-500.0,0.00032876,2]
[354926773,1740826235687,-368.270571,0.00032876,7]
[354926774,1740826235697,-500.0,0.00032876,2]
[354926775,1740826235706,-368.270571,0.00032876,7]
[354926776,1740826235718,-259.26646607,0.00032876,2]
[354926777,1740826235728,-500.0,0.00032876,2]
[354926778,1740826235739,-500.0,0.00032876,2]
[354926779,1740826235748,-500.0,0.00032876,2]
[354926780,1740826235758,-500.0,0.00032876,2]
[354926781,1740826235767,-1280.63,0.00032876,2]
[354926782,1740826235777,-222.107709,0.00032876,7]
[354926783,1740826235787,-751.35,0.00032876,2]
[354926784,1740826235796,-500.0,0.00032876,2]
[354926785,1740826235806,-222.107709,0.00032876,7]
[354926786,1740826235815,-500.0,0.00032876,2]
[354926787,1740826235825,-222.107709,0.00032876,7]
[354926788,1740826235834,-222.107709,0.00032876,7]
[354926789,1740826235844,-546.07,0.00032876,2]
[354926790,1740826235854,-500.0,0.00032876,2]
[354926791,1740826235864,-500.0,0.00032876,2]
[354926792,1740826235874,-845.92,0.00032876,2]
[354926793,1740826235884,-500.0,0.00032876,2]
[354926794,1740826235894,-1087.43,0.00032876,2]
[354926795,1740826235903,-594.410435,0.00032876,7]
[354926796,1740826235913,-1426.82,0.00032876,2]
[354926797,1740826235922,-594.410435,0.00032876,7]
[354926798,1740826235931,-758.8,0.00032876,2]
[354926799,1740826235940,-169.363748,0.00032876,7]
[354926800,1740826235950,-547.26,0.00032876,2]
[354926801,1740826235959,-500.0,0.00032876,2]
[354926802,1740826235968,-169.363748,0.00032876,7]
[354926803,1740826235978,-500.0,0.00032876,2]
[354926804,1740826235987,-500.0,0.00032876,2]
[354926805,1740826235996,-500.0,0.00032876,2]
[354926806,1740826236005,-500.0,0.00032876,2]
[354926807,1740826236015,-500.0,0.00032876,2]
[354926808,1740826236026,-500.0,0.00032876,2]
[354926809,1740826236035,-517.25,0.00032876,2]
[354926810,1740826236045,-853.88,0.00032876,2]
[354926811,1740826236054,-500.0,0.00032876,2]
[354926812,1740826236064,-1142.79,0.00032876,2]
[354926813,1740826236073,-500.0,0.00032876,2]
[354926814,1740826236082,-548.9,0.00032876,2]
[354926815,1740826236092,-500.0,0.00032876,2]
[354926816,1740826236102,-924.86,0.00032876,2]
[354926817,1740826236111,-500.0,0.00032876,2]
[354926818,1740826236120,-4747.05,0.00032876,2]
[354926819,1740826236130,-738.93,0.00032876,2]
[354926820,1740826236139,-151.0,0.00032876,7]
[354926821,1740826236149,-500.0,0.00032876,2]
[354926822,1740826236159,-500.0,0.00032876,2]
[354926823,1740826236168,-248.686358,0.00032876,7]
[354926824,1740826236178,-500.0,0.00032876,2]
[354926825,1740826236187,-513.43078725,0.00032876,2]
[354926826,1740826236197,-500.0,0.00032876,2]
[354926827,1740826236206,-983.27,0.00032876,2]
[354926828,1740826236215,-709.46,0.00032876,2]
[354926829,1740826236224,-500.0,0.00032876,2]
[354926830,1740826236234,-422.731589,0.00032876,7]
[354926831,1740826236244,-500.0,0.00032876,2]
[354926832,1740826236253,-500.0,0.00032876,2]
[354926833,1740826236262,-422.731589,0.00032876,7]
[354926834,1740826236272,-484.0087645,0.00032876,2]
[354926835,1740826236281,-836.06,0.00032876,2]
[354926836,1740826236291,-500.0,0.00032876,2]
[354926837,1740826236300,-500.0,0.00032876,2]
[354926838,1740826236310,-500.0,0.00032876,2]
[354926839,1740826236319,-378.47621435,0.00032876,2]
[354926840,1740826236328,-1669.76,0.00032876,2]
[354926841,1740826236337,-1728.77,0.00032876,2]
[354926842,1740826236347,-178.88923431,0.00032876,2]
[354926843,1740826236356,-500.0,0.00032876,2]
[354926844,1740826236365,-1331.73,0.00032876,2]
[354926845,1740826236375,-1123.919549,0.00032876,7]
[354926846,1740826236385,-500.0,0.00032876,2]
[354926847,1740826236395,-1123.919549,0.00032876,7]
[354926848,1740826236404,-500.0,0.00032876,2]
[354926849,1740826236413,-500.0,0.00032876,2]
[354926850,1740826236423,-500.0,0.00032876,2]
[354926851,1740826236432,-857.61,0.00032876,2]
[354926852,1740826236442,-151.0,0.00032876,7]
[354926853,1740826236451,-151.0,0.00032876,7]
[354926854,1740826236460,-289.177541,0.00032876,7]
[354926855,1740826236469,-289.177541,0.00032876,7]
[354926856,1740826236478,-1218.75,0.00032876,2]
[354926857,1740826236488,-210.17327674,0.00032876,7]
[354926862,1740826238508,-79.00426426,0.00032876,7]
[354926863,1740826238518,-221.49339019,0.00032876,7]
[354926864,1740826238624,-67.68415081,0.00032876,7]
[354926865,1740826238637,-500.0,0.00032876,2]
[354926866,1740826238646,-151.0,0.00032876,7]
[354926867,1740826238656,-151.0,0.00032876,7]
[354926868,1740826238668,-500.0,0.00032876,2]
[354926869,1740826238677,-500.0,0.00032876,2]
[354926870,1740826238686,-958.48,0.00032876,2]
[354926871,1740826238695,-500.0,0.00032876,2]
[354926872,1740826238706,-500.0,0.00032876,2]
[354926873,1740826238715,-500.0,0.00032876,2]
[354926874,1740826238725,-2112.07,0.00032876,2]
[354926875,1740826238734,-500.0,0.00032876,2]
[354926876,1740826238743,-500.0,0.00032876,120]
[354926877,1740826238754,-500.0,0.00032876,2]
[354926878,1740826238763,-500.0,0.00032876,2]
[354926879,1740826238773,-526.49997469,0.00032876,2]
[354926880,1740826238783,-504.6248032,0.00032876,2]
[354926881,1740826238792,-500.0,0.00032876,2]
[354926882,1740826238802,-544.98855698,0.00032876,2]
[354926883,1740826238811,-500.0,0.00032876,2]
[354926884,1740826238821,-500.0,0.00032876,2]
[354926885,1740826238831,-1312.28,0.00032876,2]
[354926886,1740826238840,-500.0,0.00032876,2]
[354926887,1740826238849,-500.0,0.00032876,2]
[354926888,1740826238859,-500.0,0.00032876,2]
[354926889,1740826238868,-500.0,0.00032876,2]
[354926890,1740826238877,-722.85,0.00032876,2]
[354926891,1740826238887,-500.0,0.00032876,2]
[354926892,1740826238896,-1388.6,0.00032876,2]
[354926893,1740826238906,-500.0,0.00032876,2]
[354926894,1740826238915,-500.0,0.00032876,2]
[354926895,1740826238924,-1122.37,0.00032876,2]
[354926896,1740826238934,-677.84,0.00032876,2]
[354926897,1740826238943,-500.0,0.00032876,2]
[354926898,1740826238952,-663.2,0.00032876,2]
[354926899,1740826238962,-1387.97,0.00032876,2]
[354926900,1740826238971,-500.0,0.00032876,2]
[354926901,1740826238980,-500.0,0.00032876,2]
[354926902,1740826238990,-500.0,0.00032876,2]
[354926903,1740826238999,-500.0,0.00032876,2]
[354926904,1740826239009,-926.38,0.00032876,2]
[354926905,1740826239018,-518.67,0.00032876,2]
[354926906,1740826239029,-500.0,0.00032876,2]
[354926907,1740826239038,-500.0,0.00032876,2]
[354926908,1740826239048,-151.0,0.00032876,7]
[354926909,1740826239057,-500.0,0.00032876,2]
[354926910,1740826239066,-500.0,0.00032876,2]
[354926911,1740826239076,-500.0,0.00032876,2]
[354926912,1740826239085,-500.0,0.00032876,2]
[354926913,1740826239095,-500.0,0.00032876,2]
[354926914,1740826239104,-500.0,0.00032876,2]
[354926915,1740826239114,-500.0,0.00032876,2]
[354926916,1740826239123,-1617.61,0.00032876,2]
[354926917,1740826239132,-500.0,0.00032876,2]
[354926918,1740826239142,-500.0,0.00032876,2]
[354926919,1740826239152,-537.39,0.00032876,2]
[354926920,1740826239162,-1398.57,0.00032876,2]
[354926921,1740826239172,-1306.57,0.00032876,2]
[354926922,1740826239182,-1362.38,0.00032876,2]
[354926923,1740826239191,-500.0,0.00032876,2]
[354926924,1740826239201,-409.537594,0.00032876,7]
[354926925,1740826239211,-887.37,0.00032876,2]
[354926926,1740826239220,-500.0,0.00032876,2]
[354926927,1740826239230,-1186.194361,0.00032876,7]
[354926928,1740826239239,-500.0,0.00032876,2]
[354926929,1740826239248,-409.537594,0.00032876,7]
[354926930,1740826239258,-544.4,0.00032876,2]
[354926931,1740826239268,-500.0,0.00032876,2]
[354926932,1740826239278,-1186.194361,0.00032876,7]
[354926933,1740826239287,-833.57,0.00032876,2]
[354926934,1740826239297,-500.0,0.00032876,120]
[354926935,1740826239307,-427.49400067,0.00032876,2]
[354926936,1740826239316,-690.11,0.00032876,2]
[354926937,1740826239325,-1189.39,0.00032876,2]
[354926938,1740826239335,-500.0,0.00032876,2]
[354926939,1740826239344,-500.0,0.00032876,2]
[354926940,1740826239354,-500.0,0.00032876,2]
[354926941,1740826239363,-1258.97,0.00032876,2]
[354926942,1740826239373,-1420.199255,0.00032876,7]
[354926943,1740826239383,-500.0,0.00032876,2]
[354926944,1740826239392,-500.0,0.00032876,2]
[354926945,1740826239401,-500.0,0.00032876,2]
[354926946,1740826239411,-500.0,0.00032876,2]
[354926947,1740826239420,-1420.199255,0.00032876,7]
[354926948,1740826239430,-3944.84,0.00032876,2]
[354926949,1740826239440,-500.0,0.00032876,2]
[354926950,1740826239449,-525.12,0.00032876,2]
[354926951,1740826239459,-611.35,0.00032876,2]
[354926952,1740826239468,-524.21908118,0.00032876,2]
[354926953,1740826239478,-500.0,0.00032876,2]
[354926954,1740826239488,-500.0,0.00032876,2]
[354926955,1740826239498,-151.0,0.00032876,7]
[354926956,1740826239507,-500.0,0.00032876,2]
[354926957,1740826239517,-500.0,0.00032876,2]
[354926958,1740826239527,-291.148032,0.00032876,7]
[354926959,1740826239536,-151.0,0.00032876,7]
[354926960,1740826239546,-500.0,0.00032876,2]
[354926961,1740826239555,-3608.99,0.00032876,2]
[354926962,1740826239565,-2229.02,0.00032876,2]
[354926963,1740826239574,-571.92,0.00032876,2]
[354926964,1740826239584,-1184.5,0.00032876,2]
[354926965,1740826239593,-500.0,0.00032876,2]
[354926966,1740826239603,-722.22,0.00032876,2]
[354926967,1740826239613,-570.64,0.00032876,2]
[354926968,1740826239623,-500.0,0.00032876,2]
[354926969,1740826239632,-637.64,0.00032876,2]
[354926970,1740826239642,-559.3,0.00032876,2]
[354926971,1740826239652,-1566.47,0.00032876,2]
[354926972,1740826239663,-500.0,0.00032876,2]
[354926973,1740826239673,-500.0,0.00032876,2]
[354926974,1740826239683,-1938.73,0.00032876,2]
[354926975,1740826239692,-500.0,0.00032876,2]
[354926976,1740826239703,-2677.46,0.00032876,2]
[354926977,1740826239713,-500.0,0.00032876,2]
[354926978,1740826239722,-893.85,0.00032876,2]
[354926979,1740826239731,-2310.8,0.00032876,2]
[354926980,1740826239742,-500.0,0.00032876,2]
[354926981,1740826239752,-589.12,0.00032876,2]
[354926982,1740826239762,-512.61654751,0.00032876,2]
[354926983,1740826239772,-500.0,0.00032876,2]
[354926984,1740826239783,-1496.57,0.00032876,2]
[354926985,1740826239795,-1732.74,0.00032876,2]
[354926986,1740826239805,-406.332746,0.00032876,7]
[354926987,1740826239814,-2377.37,0.00032876,2]
[354926988,1740826239824,-12953.55,0.00032876,2]
[354926989,1740826239834,-406.332746,0.00032876,7]
[354926990,1740826239843,-785.44,0.00032876,2]
[354926991,1740826239853,-3024.26,0.00032876,2]
[354926992,1740826239863,-838.86,0.00032876,2]
[354926993,1740826239874,-1153.19,0.00032876,2]
[354926994,1740826239883,-500.0,0.00032876,2]
[354926995,1740826239892,-1998.12,0.00032876,2]
[354926996,1740826239902,-2064.31,0.00032876,2]
[354926997,1740826239911,-1275.38,0.00032876,2]
[354926998,1740826239921,-500.0,0.00032876,2]
[354926999,1740826239931,-500.0,0.00032876,2]
[354927000,1740826239941,-500.0,0.00032876,2]
[354927001,1740826239951,-1368.74,0.00032876,2]
[354927002,1740826239962,-500.0,0.00032876,2]
[354927003,1740826239972,-2031.37,0.00032876,2]
[354927004,1740826239981,-500.0,0.00032876,2]
[354927005,1740826239991,-615.29,0.00032876,2]
[354927006,1740826240001,-476.15689577,0.00032876,2]
[354927007,1740826240011,-646.77,0.00032876,2]
[354927008,1740826240020,-500.0,0.00032876,2]
[354927009,1740826240030,-500.0,0.00032876,2]
[354927010,1740826240039,-500.0,0.00032876,2]
[354927011,1740826240049,-500.0,0.00032876,2]
[354927012,1740826240058,-500.0,0.00032876,2]
[354927013,1740826240068,-500.0,0.00032876,2]
[354927014,1740826240078,-3840.2,0.00032876,2]
[354927015,1740826240087,-500.0,0.00032876,2]
[354927016,1740826240096,-500.0,0.00032876,2]
[354927017,1740826240105,-603.13,0.00032876,2]
[354927018,1740826240114,-620.78,0.00032876,2]
[354927019,1740826240123,-1767.66,0.00032876,2]
[354927020,1740826240133,-500.0,0.00032876,2]
[354927021,1740826240142,-1291.87,0.00032876,2]
[354927022,1740826240152,-500.0,0.00032876,2]
[354927023,1740826240161,-685.18,0.00032876,2]
[354927024,1740826240170,-510.39,0.00032876,2]
[354927025,1740826240179,-1050.2,0.00032876,2]
[354927026,1740826240188,-794.33,0.00032876,2]
[354927027,1740826240198,-500.0,0.00032876,2]
[354927028,1740826240207,-558.54297395,0.00032876,2]
[354927029,1740826240217,-507.85,0.00032876,2]
[354927030,1740826240227,-500.0,0.00032876,2]
[354927031,1740826240236,-1157.47,0.00032876,2]
[354927032,1740826240245,-500.0,0.00032876,2]
[354927033,1740826240255,-500.0,0.00032876,2]
[354927034,1740826240265,-1825.46,0.00032876,2]
[354927035,1740826240274,-500.0,0.00032876,2]
[354927036,1740826240284,-500.0,0.00032876,2]
[354927037,1740826240293,-500.0,0.00032876,2]
[354927038,1740826240303,-175668.5,0.00032876,2]
[354927039,1740826240312,-574.35481954,0.00032876,2]
[354927040,1740826240322,-500.0,0.00032876,2]
[354927041,1740826240331,-500.0,0.00032876,2]
[354927042,1740826240340,-500.0,0.00032876,2]
[354927043,1740826240349,-1176.26,0.00032876,2]
[354927044,1740826240359,-500.0,0.00032876,2]
[354927045,1740826240368,-262.909401,0.00032876,7]
[354927046,1740826240377,-1470.6,0.00032876,2]
[354927047,1740826240387,-600.13,0.00032876,2]
[354927048,1740826240396,-665.58,0.00032876,2]
[354927049,1740826240405,-540.02,0.00032876,2]
[354927050,1740826240415,-500.0,0.00032876,2]
[354927051,1740826240424,-500.0,0.00032876,2]
[354927052,1740826240433,-500.0,0.00032876,2]
[354927053,1740826240443,-262.909401,0.00032876,7]
[354927054,1740826240452,-3331.53,0.00032876,2]
[354927055,1740826240462,-518.92312139,0.00032876,2]
[354927056,1740826240471,-941.31,0.00032876,2]
[354927057,1740826240480,-500.0,0.00032876,2]
[354927058,1740826240490,-3179.457188,0.00032876,7]
[354927059,1740826240499,-3179.457188,0.00032876,7]
[354927060,1740826240509,-10877.71,0.00032876,2]
[354927061,1740826240518,-958.86,0.00032876,2]
[354927062,1740826240529,-500.0,0.00032876,2]
[354927063,1740826240538,-3179.457188,0.00032876,7]
[354927064,1740826240547,-3179.457188,0.00032876,7]
[354927065,1740826240556,-500.0,0.00032876,2]
[354927066,1740826240565,-500.0,0.00032876,2]
[354927067,1740826240575,-1693.9,0.00032876,2]
[354927068,1740826240585,-750.48,0.00032876,2]
[354927069,1740826240594,-532.85,0.00032876,2]
[354927070,1740826240603,-500.0,0.00032876,2]
[354927071,1740826240613,-500.0,0.00032876,2]
[354927072,1740826240623,-500.0,0.00032876,2]
[354927073,1740826240632,-2593.88,0.00032876,2]
[354927074,1740826240641,-161.899926,0.00032876,7]
[354927075,1740826240651,-665.48,0.00032876,2]
[354927076,1740826240663,-500.0,0.00032876,2]
[354927077,1740826240672,-525.36,0.00032876,2]
[354927078,1740826240681,-523.45,0.00032876,2]
[354927079,1740826240690,-2504.81,0.00032876,2]
[354927080,1740826240699,-500.0,0.00032876,2]
[354927081,1740826240708,-161.899926,0.00032876,7]
[354927084,1740826241025,-151.0,0.00032876,7]
[354927085,1740826241037,-5442.49,0.00032876,2]
[354927086,1740826241047,-1069.15,0.00032876,2]
[354927087,1740826241056,-600.95,0.00032876,2]
[354927088,1740826241066,-200.0,0.00032876,2]
[354927089,1740826241076,-500.0,0.00032876,2]
[354927090,1740826241086,-603.16,0.00032876,2]
[354927091,1740826241096,-475.45872138,0.00032876,2]
[354927092,1740826241106,-500.0,0.00032876,2]
[354927093,1740826241115,-151.0,0.00032876,7]
[354927094,1740826241125,-316.76954687,0.00032876,2]
[354927095,1740826241135,-1512.3,0.00032876,2]
[354927096,1740826241144,-573.23,0.00032876,2]
[354927097,1740826241154,-1341.87,0.00032876,2]
[354927098,1740826241163,-27639.67,0.00032876,2]
[354927099,1740826241173,-151.0,0.00032876,7]
[354927101,1740826241183,-500.0,0.00032876,2]
[354927103,1740826241192,-4518.78,0.00032876,2]
[354927104,1740826241202,-2082.3,0.00032876,2]
[354927106,1740826241211,-500.0,0.00032876,2]
[354927107,1740826241221,-500.0,0.00032876,2]
[354927108,1740826241230,-192.80498937,0.00032876,2]
[354927109,1740826241240,-220.540316,0.00032876,7]
[354927110,1740826241249,-500.0,0.00032876,2]
[354927111,1740826241259,-500.0,0.00032876,2]
[354927112,1740826241269,-1709.38,0.00032876,2]
[354927113,1740826241279,-1060.86,0.00032876,2]
[354927114,1740826241289,-33716.27,0.00032876,2]
[354927115,1740826241298,-1567.97,0.00032876,5]
[354927116,1740826241308,-833.58,0.00032876,2]
[354927117,1740826241317,-500.0,0.00032876,2]
[354927118,1740826241327,-500.0,0.00032876,2]
[354927119,1740826241336,-500.0,0.00032876,2]
[354927120,1740826241345,-500.0,0.00032876,2]
[354927121,1740826241355,-500.0,0.00032876,2]
[354927122,1740826241365,-1708.17,0.00032876,2]
[354927123,1740826241375,-2399.89,0.00032876,2]
[354927124,1740826241384,-645.09,0.00032876,2]
[354927125,1740826241394,-500.0,0.00032876,2]
[354927126,1740826241403,-1182.61,0.00032876,2]
[354927127,1740826241413,-500.0,0.00032876,2]
[354927128,1740826241423,-772.51,0.00032876,2]
[354927129,1740826241432,-300.0,0.00032876,120]
[354927130,1740826241442,-3145.25,0.00032876,2]
[354927131,1740826241451,-500.0,0.00032876,2]
[354927132,1740826241461,-749.3,0.00032876,2]
[354927133,1740826241470,-6638.84,0.00032876,2]
[354927134,1740826241480,-500.0,0.00032876,2]
[354927135,1740826241489,-500.0,0.00032876,2]
[354927136,1740826241499,-500.0,0.00032876,2]
[354927137,1740826241509,-500.0,0.00032876,2]
[354927138,1740826241518,-522.27963479,0.00032876,2]
[354927139,1740826241529,-500.0,0.00032876,2]
[354927140,1740826241539,-1980.41,0.00032876,2]
[354927141,1740826241549,-370.08880619,0.00032876,2]
[354927142,1740826241558,-500.0,0.00032876,2]
[354927143,1740826241567,-500.0,0.00032876,2]
[354927144,1740826241577,-500.0,0.00032876,2]
[354927145,1740826241587,-500.0,0.00032876,2]
[354927146,1740826241597,-500.0,0.00032876,2]
[354927147,1740826241606,-566.76,0.00032876,2]
[354927148,1740826241616,-969.7,0.00032876,2]
[354927149,1740826241626,-500.0,0.00032876,2]
[354927150,1740826241635,-500.0,0.00032876,2]
[354927151,1740826241645,-2139.75,0.00032876,2]
[354927152,1740826241655,-500.0,0.00032876,2]
[354927153,1740826241669,-500.0,0.00032876,2]
[354927154,1740826241679,-500.0,0.00032876,2]
[354927155,1740826241689,-877.84,0.00032876,2]
[354927156,1740826241698,-500.0,0.00032876,2]
[354927157,1740826241708,-1274.57,0.00032876,2]
[354927158,1740826241718,-151.0,0.00032876,7]
[354927159,1740826241728,-151.0,0.00032876,7]
[354927160,1740826241740,-151.0,0.00032876,7]
[354927161,1740826241750,-778.45,0.00032876,2]
[354927162,1740826241759,-4479.3,0.00032876,2]
[354927163,1740826241769,-1308.61,0.00032876,2]
[354927164,1740826241779,-1093.98,0.00032876,2]
[354927165,1740826241788,-939.08,0.00032876,2]
[354927166,1740826241798,-500.0,0.00032876,2]
[354927167,1740826241807,-500.0,0.00032876,2]
[354927168,1740826241817,-305.04943,0.00032876,7]
[354927169,1740826241826,-305.04943,0.00032876,7]
[354927170,1740826241836,-305.04943,0.00032876,7]
[354927171,1740826241845,-500.0,0.00032876,2]
[354927172,1740826241855,-500.0,0.00032876,2]
[354927173,1740826241864,-861.07,0.00032876,2]
[354927174,1740826241874,-1376.758981,0.00032876,7]
[354927175,1740826241884,-500.0,0.00032876,2]
[354927176,1740826241893,-500.0,0.00032876,2]
[354927177,1740826241903,-538.09,0.00032876,2]
[354927178,1740826241912,-1376.758981,0.00032876,7]
[354927179,1740826241922,-500.0,0.00032876,2]
[354927180,1740826241931,-305.04943,0.00032876,7]
[354927181,1740826241941,-305.04943,0.00032876,7]
[354927182,1740826241951,-500.0,0.00032876,2]
[354927183,1740826241960,-305.04943,0.00032876,7]
[354927184,1740826241970,-500.0,0.00032876,2]
[354927185,1740826241979,-1376.758981,0.00032876,7]
[354927186,1740826241989,-731.27,0.00032876,2]
[354927187,1740826241998,-1376.758981,0.00032876,7]
[354927188,1740826242007,-725.07,0.00032876,2]
[354927189,1740826242017,-500.0,0.00032876,2]
[354927190,1740826242027,-500.0,0.00032876,2]
[354927191,1740826242037,-2219.23,0.00032876,2]
[354927192,1740826242047,-6922.22,0.00032876,2]
[354927193,1740826242056,-1056.01,0.00032876,2]
[354927194,1740826242066,-500.0,0.00032876,2]
[354927195,1740826242076,-500.0,0.00032876,2]
[354927196,1740826242085,-3600.62,0.00032876,2]
[354927197,1740826242095,-500.0,0.00032876,2]
[354927198,1740826242104,-500.0,0.00032876,2]
[354927199,1740826242114,-500.0,0.00032876,2]
[354927200,1740826242124,-500.0,0.00032876,2]
[354927201,1740826242133,-514.3986795,0.00032876,2]
[354927202,1740826242143,-500.0,0.00032876,2]
[354927203,1740826242153,-500.0,0.00032876,2]
[354927204,1740826242162,-1664.91,0.00032876,2]
[354927205,1740826242172,-1345.56,0.00032876,2]
[354927206,1740826242182,-583.40623615,0.00032876,2]
[354927207,1740826242192,-500.0,0.00032876,2]